bitfinex/quotes_BTCUSD_20251007
["timestamp","ask_amount","ask_price","bid_price","bid_amount"]
[1759841999678,0.34648208,124910.0,124900.0,0.66429738]
[1759841999889,0.26648528,124910.0,124900.0,0.66429738]
[1759842000033,0.16111528,124910.0,124900.0,0.66429738]
[1759842001746,0.001,124910.0,124900.0,0.74741944]
[1759842001949,0.001,124910.0,124900.0,1.11757134]
[1759842002423,0.001,124910.0,124900.0,1.37128334]
[1759842002851,0.00053335,124960.0,124940.0,0.0301519]
[1759842002997,0.00053335,124960.0,124950.0,1.44616036]
[1759842003328,0.02690084,124970.0,124960.0,0.3701519]
[1759842003494,0.06536749,124990.0,124960.0,0.45327396]
[1759842003692,1.175,125000.0,124980.0,0.0832]
[1759842003918,1.175,125000.0,124990.0,0.32720334]
[1759842004146,1.175,125000.0,124990.0,0.08312206]
[1759842004299,1.175,125000.0,124990.0,1.06000206]
[1759842004502,1.175,125000.0,124990.0,0.08312206]
[1759842004980,1.175,125000.0,124990.0,0.92788206]
[1759842005153,1.175,125000.0,124990.0,0.92816206]
[1759842005400,1.175,125000.0,124990.0,0.92916206]
[1759842005607,1.175,125000.0,124990.0,1.06140206]
[1759842005817,1.175,125000.0,124990.0,1.09155396]
[1759842006043,1.175,125000.0,124990.0,1.06140206]
[1759842006210,1.175,125000.0,124990.0,0.08412206]
[1759842006451,1.175,125000.0,124990.0,1.06136206]
[1759842006691,1.178,125000.0,124990.0,0.08412206]
[1759842006908,1.175,125000.0,124990.0,0.08412206]
[1759842007220,1.335,125000.0,124990.0,0.001]
[1759842007420,1.335,125000.0,124990.0,0.41588]
[1759842007421,1.37741,125000.0,124990.0,0.41588]
[1759842007630,1.47985,125000.0,124990.0,0.42572]
[1759842007834,1.336,125000.0,124990.0,0.42572]
[1759842008019,1.37741,125000.0,124990.0,0.56332]
[1759842008173,1.37641,125000.0,124990.0,0.64648]
[1759842008389,1.37641,125000.0,124990.0,0.64448]
[1759842008790,1.35165884,125000.0,124990.0,0.64448]
[1759842009633,1.33578884,125000.0,124990.0,0.64448]
[1759842009891,1.17578884,125000.0,124990.0,0.64456]
[1759842010100,1.17578884,125000.0,124990.0,0.72768206]
[1759842010942,1.17578884,125000.0,124990.0,0.64456206]
[1759842011152,1.17578884,125000.0,124990.0,1.06036206]
[1759842011312,1.17578884,125000.0,124990.0,1.40036206]
[1759842011903,1.17578884,125000.0,124990.0,1.72078906]
[1759842012118,1.17578884,125000.0,124990.0,1.61343806]
[1759842012336,1.17578884,125000.0,124990.0,1.06036206]
[1759842012981,1.17578884,125000.0,124990.0,1.40136206]
[1759842013182,1.17578884,125000.0,124990.0,1.69951406]
[1759842013387,1.17578884,125000.0,124990.0,1.40136206]
[1759842013843,1.17578884,125000.0,124990.0,0.98448206]
[1759842014065,1.17578884,125000.0,124990.0,1.40020206]
[1759842014276,1.17578884,125000.0,124990.0,1.40320206]
[1759842015620,1.17578884,125000.0,124990.0,0.42612206]
[1759842015834,1.13678884,125000.0,124990.0,1.40312206]
[1759842016064,1.13678884,125000.0,124990.0,0.42612206]
[1759842016263,1.13678884,125000.0,124990.0,1.40304206]
[1759842017400,1.13678884,125000.0,124990.0,1.40300206]
[1759842022771,1.09778884,125000.0,124990.0,1.40300206]
[1759842029943,1.05878884,125000.0,124990.0,1.40300206]
[1759842032665,1.05878884,125000.0,124990.0,1.17420206]
[1759842032871,1.05878884,125000.0,124990.0,1.40236206]
[1759842036490,1.05878884,125000.0,124990.0,0.42612206]
[1759842036816,1.05878884,125000.0,124990.0,1.40236206]
[1759842037031,1.01978884,125000.0,124990.0,0.42612206]
[1759842037247,1.01978884,125000.0,124990.0,1.40232206]
[1759842037458,1.01978884,125000.0,124990.0,0.08612206]
[1759842037678,1.01978884,125000.0,124990.0,0.58440206]
[1759842040456,1.01978884,125000.0,124990.0,0.92440206]
[1759842044208,0.98078884,125000.0,124990.0,0.92440206]
[1759842045592,0.98078884,125000.0,124990.0,1.40224206]
[1759842046592,0.98078884,125000.0,124990.0,1.40220206]
[1759842047546,0.98078884,125000.0,124990.0,0.42612206]
[1759842047742,0.98078884,125000.0,124990.0,1.40216206]
[1759842048148,0.98078884,125000.0,124990.0,0.08612206]
[1759842048415,2.17014564,125000.0,124990.0,0.4186]
[1759842048623,2.26860564,125000.0,124990.0,0.64656]
[1759842048851,1.78238861,125000.0,124990.0,0.64656]
[1759842049172,1.23638521,125000.0,124990.0,0.64656]
[1759842049782,1.22889884,125000.0,124990.0,0.64656]
[1759842049976,1.23638021,125000.0,124990.0,0.64656]
[1759842050388,1.18709884,125000.0,124990.0,0.64656]
[1759842050551,1.18709884,125000.0,124990.0,0.72968206]
[1759842050552,1.14078884,125000.0,124990.0,0.72968206]
[1759842051156,1.15623884,125000.0,124990.0,0.72968206]
[1759842052105,1.11723884,125000.0,124990.0,0.72968206]
[1759842052861,1.14373884,125000.0,124990.0,0.72968206]
[1759842053446,1.11723884,125000.0,124990.0,0.72968206]
[1759842054202,1.10178884,125000.0,124990.0,0.72968206]
[1759842054827,1.11723884,125000.0,124990.0,0.72968206]
[1759842055204,1.10178884,125000.0,124990.0,0.72968206]
[1759842056236,1.11723884,125000.0,124990.0,0.72968206]
[1759842056455,1.14373884,125000.0,124990.0,0.08612206]
[1759842056656,1.24219884,125000.0,124990.0,0.72976206]
[1759842057278,1.24219884,125000.0,124990.0,0.003]
[1759842057481,1.24219884,125000.0,124990.0,0.6466]
[1759842060417,1.24219884,125000.0,124990.0,0.003]
[1759842060637,1.24219884,125000.0,124990.0,0.64652]
[1759842061271,1.80336757,125000.0,124990.0,0.003]
[1759842061510,1.83351947,125000.0,124990.0,0.41864]
[1759842061720,1.83351947,125000.0,124990.0,0.42136]
[1759842062165,2.17351947,125000.0,124990.0,0.41836]
[1759842062374,2.25351627,125000.0,124990.0,0.41836]
[1759842064411,2.25451627,125000.0,124990.0,0.41836]
[1759842064624,2.17451947,125000.0,124990.0,0.41836]
[1759842064867,0.1600128,124990.0,124980.0,4.969e-05]
[1759842065122,0.1755028,124990.0,124980.0,0.42792969]
[1759842065347,0.2492928,124990.0,124980.0,0.42792969]
[1759842065553,0.3049028,124990.0,124980.0,0.42792969]
[1759842066241,0.3079028,124990.0,124980.0,0.42792969]
[1759842070004,0.89922343,124990.0,124980.0,4.969e-05]
[1759842070218,0.89922343,124990.0,124980.0,0.64360969]
[1759842070368,1.31981191,124990.0,124980.0,0.64360969]
[1759842071202,1.32293717,124990.0,124980.0,0.64360969]
[1759842072636,0.76176844,124990.0,124980.0,0.64360969]
[1759842072842,1.32293717,124990.0,124980.0,0.64360969]
[1759842073186,1.75018596,124990.0,124980.0,0.31104969]
[1759842073393,1.83018276,124990.0,124980.0,0.31104969]
[1759842073818,0.5301903,124970.0,124960.0,0.3326]
[1759842074022,1.02439906,124970.0,124960.0,0.41576969]
[1759842074288,1.03378706,124970.0,124960.0,0.41576969]
[1759842074510,1.15328706,124970.0,124960.0,0.41576969]
[1759842074750,1.23328386,124970.0,124960.0,0.41576969]
[1759842074966,1.23328386,124970.0,124960.0,0.64368969]
[1759842075612,1.23728386,124970.0,124960.0,0.64368969]
[1759842075829,1.15728706,124970.0,124960.0,0.64368969]
[1759842076048,0.6630783,124970.0,124960.0,0.64368969]
[1759842076253,1.16828706,124970.0,124960.0,0.64368969]
[1759842076742,1.25073196,124970.0,124960.0,0.64368969]
[1759842076945,1.27022632,124970.0,124960.0,0.64368969]
[1759842077158,1.84687998,124970.0,124960.0,0.64368969]
[1759842077365,1.25078549,124970.0,124960.0,0.64368969]
[1759842078456,1.33390755,124970.0,124960.0,0.64368969]
[1759842078657,0.75720036,124970.0,124960.0,0.64368969]
[1759842078864,1.33390755,124970.0,124960.0,0.64368969]
[1759842079298,1.4141016,124970.0,124960.0,0.64368969]
[1759842080966,0.53020311,124960.0,124950.0,0.00033357]
[1759842081242,1.1392103,124960.0,124950.0,0.0835433]
[1759842081405,1.1804403,124960.0,124950.0,0.0835433]
[1759842081631,1.2518003,124960.0,124950.0,0.0835433]
[1759842081830,1.27228103,124960.0,124950.0,0.0835433]
[1759842082054,1.27528103,124960.0,124950.0,0.0835433]
[1759842082267,1.28128103,124960.0,124950.0,0.3114633]
[1759842083057,1.2608003,124960.0,124950.0,0.3114633]
[1759842083664,0.68409311,124960.0,124950.0,0.3114633]
[1759842083866,1.2608003,124960.0,124950.0,0.3114633]
[1759842084252,1.26888198,124960.0,124950.0,0.3114633]
[1759842085065,1.92871123,124960.0,124950.0,0.3114633]
[1759842085269,2.00870803,124960.0,124950.0,0.3114633]
[1759842085494,2.03272877,124960.0,124950.0,0.3114633]
[1759842085751,2.03272877,124960.0,124910.0,0.01]
[1759842085752,0.16010246,124920.0,124910.0,0.01]
[1759842085970,0.16010246,124920.0,124910.0,0.42588981]
[1759842086162,0.27269246,124920.0,124910.0,0.65384981]
[1759842086392,0.88169965,124920.0,124910.0,0.34272981]
[1759842086596,0.88169965,124920.0,124910.0,0.65384981]
[1759842087009,0.88169965,124920.0,124910.0,0.65584981]
[1759842087635,0.91185155,124920.0,124910.0,0.65784981]
[1759842088133,0.26522246,124920.0,124910.0,0.65784981]
[1759842088346,0.26522246,124920.0,124910.0,0.65384981]
[1759842088559,0.30499246,124920.0,124910.0,0.65484981]
[1759842088744,0.16010246,124920.0,124910.0,0.65484981]
[1759842090403,0.17556246,124920.0,124910.0,0.65484981]
[1759842090618,0.16010246,124920.0,124910.0,0.65384981]
[1759842091457,0.16010246,124920.0,124910.0,0.65463931]
[1759842091672,0.17556246,124920.0,124910.0,0.65463931]
[1759842091882,0.16010246,124920.0,124910.0,0.65463931]
[1759842092739,0.17556104,124930.0,124910.0,0.73776137]
[1759842092974,0.16010104,124930.0,124920.0,0.01601024]
[1759842093437,0.16008965,124930.0,124920.0,0.0991323]
[1759842093639,0.18356263,124940.0,124920.0,0.0991323]
[1759842093858,0.20954263,124940.0,124930.0,0.22796]
[1759842094732,0.27847263,124940.0,124930.0,0.22796]
[1759842094948,0.21620683,124940.0,124930.0,0.22796]
[1759842095151,0.17553683,124940.0,124930.0,0.22796]
[1759842095559,0.17555442,124950.0,124930.0,0.22796]
[1759842095724,0.16507683,124940.0,124930.0,0.22796]
[1759842095970,0.16507683,124940.0,124930.0,0.31112]
[1759842096537,0.16107683,124940.0,124930.0,0.31112]
[1759842097100,0.16007683,124940.0,124930.0,0.31112]
[1759842098437,0.001,124940.0,124930.0,0.39424206]
[1759842098646,0.005,124940.0,124930.0,0.39424206]
[1759842099478,0.001,124940.0,124930.0,0.08312206]
[1759842099701,0.003,124940.0,124930.0,0.64380206]
[1759842099908,0.003,124940.0,124930.0,1.05968206]
[1759842100118,0.04231,124940.0,124930.0,0.41584206]
[1759842100332,0.04231,124940.0,124920.0,0.33272]
[1759842100333,0.16008965,124930.0,124920.0,0.33272]
[1759842100539,0.16008965,124930.0,124920.0,0.7486]
[1759842100540,0.27064965,124930.0,124920.0,0.7486]
[1759842100748,0.30092965,124930.0,124920.0,0.97656]
[1759842101457,0.87763684,124930.0,124920.0,0.97656]
[1759842101666,0.87763684,124930.0,124920.0,0.97756]
[1759842102344,0.30092965,124930.0,124920.0,0.97756]
[1759842103216,0.30092965,124930.0,124920.0,0.97656]
[1759842103664,0.16010246,124920.0,124910.0,0.00904981]
[1759842103893,0.16010246,124920.0,124910.0,0.65288981]
[1759842104108,0.17610246,124920.0,124910.0,0.65288981]
[1759842104317,0.21809246,124920.0,124910.0,0.65288981]
[1759842104522,0.21809246,124920.0,124910.0,0.65367931]
[1759842105172,0.21809246,124920.0,124910.0,0.00983931]
[1759842105373,0.21809246,124920.0,124910.0,0.65367931]
[1759842106248,0.28794246,124920.0,124910.0,0.00983931]
[1759842106451,0.28794246,124920.0,124910.0,0.65367931]
[1759842106869,0.28794246,124920.0,124910.0,0.65467931]
[1759842107119,0.28794246,124920.0,124910.0,0.01083931]
[1759842107361,0.31809436,124920.0,124910.0,0.42671931]
[1759842107572,0.31809436,124920.0,124910.0,0.53391931]
[1759842110438,0.5001281,124900.0,124890.0,0.1]
[1759842110645,0.5960081,124900.0,124890.0,0.74441743]
[1759842110850,0.6409681,124900.0,124890.0,0.74441743]
[1759842111585,0.6499681,124900.0,124890.0,0.74441743]
[1759842112951,0.68012,124900.0,124890.0,0.10049743]
[1759842113110,0.68012,124900.0,124890.0,0.74441743]
[1759842113516,0.68012,124900.0,124890.0,0.10049743]
[1759842113739,0.68012,124900.0,124890.0,0.60149743]
[1759842113916,0.74692188,124900.0,124890.0,0.60149743]
[1759842114301,0.68012,124900.0,124890.0,0.60149743]
[1759842115466,0.68012,124900.0,124890.0,0.10049743]
[1759842115708,0.76324206,124900.0,124890.0,0.60141743]
[1759842116280,0.76324206,124900.0,124890.0,0.60181231]
[1759842116690,0.84323886,124900.0,124890.0,0.60181231]
[1759842116874,0.76324206,124900.0,124890.0,0.60181231]
[1759842118279,1.33994925,124900.0,124890.0,0.10089231]
[1759842118489,1.33994925,124900.0,124890.0,0.41209231]
[1759842119715,0.76324206,124900.0,124890.0,0.41209231]
[1759842119922,1.41994605,124900.0,124890.0,0.41209231]
[1759842120133,1.46790605,124900.0,124890.0,0.41209231]
[1759842120338,1.41994605,124900.0,124890.0,0.41209231]
[1759842121123,1.44397805,124900.0,124890.0,0.41209231]
[1759842121992,1.36398125,124900.0,124890.0,0.41209231]
[1759842122192,1.36398125,124900.0,124890.0,0.10089231]
[1759842122424,0.53030564,124880.0,124870.0,0.33284]
[1759842122636,0.19031847,124870.0,124860.0,0.0004]
[1759842122849,0.19031847,124870.0,124860.0,0.64456]
[1759842123054,0.27601847,124870.0,124860.0,0.64456]
[1759842123250,0.29837657,124870.0,124860.0,0.64456]
[1759842123459,0.66852847,124870.0,124860.0,0.0004]
[1759842123693,0.66852847,124870.0,124860.0,0.64456]
[1759842124118,1.32835772,124870.0,124860.0,0.33324]
[1759842124347,1.32835772,124870.0,124860.0,0.64452]
[1759842124566,1.32835772,124870.0,124860.0,0.64552]
[1759842124779,0.75165053,124870.0,124860.0,0.64552]
[1759842124991,1.32835772,124870.0,124860.0,0.64552]
[1759842125375,1.33635772,124870.0,124860.0,0.31272]
[1759842126025,0.75965053,124870.0,124860.0,0.31172]
[1759842126234,1.33635772,124870.0,124860.0,0.31172]
[1759842126448,0.76365053,124870.0,124860.0,0.31172]
[1759842128606,0.76365053,124870.0,124860.0,0.3123125]
[1759842128811,0.84364733,124870.0,124860.0,0.3123125]
[1759842130261,0.86768424,124870.0,124860.0,0.3123125]
[1759842130486,0.84364733,124870.0,124860.0,0.3123125]
[1759842131014,0.64286847,124870.0,124860.0,0.3123125]
[1759842131218,0.25786657,124870.0,124860.0,0.3123125]
[1759842131444,0.24281657,124870.0,124860.0,0.3123125]
[1759842131678,0.27296847,124870.0,124860.0,0.3123125]
[1759842131895,0.34052847,124870.0,124860.0,0.3123125]
[1759842132512,0.41652527,124870.0,124860.0,0.6451925]
[1759842132733,0.33952847,124870.0,124860.0,0.6451925]
[1759842133126,0.33152847,124870.0,124860.0,0.6451925]
[1759842133321,0.33752847,124870.0,124860.0,0.6451925]
[1759842134524,0.25486657,124870.0,124860.0,0.6451925]
[1759842134746,0.16916657,124870.0,124860.0,0.6451925]
[1759842135248,0.52369657,124870.0,124860.0,0.6451925]
[1759842136513,0.16916657,124870.0,124860.0,0.6451925]
[1759842137109,0.20944657,124870.0,124860.0,0.6451925]
[1759842138798,0.04928,124870.0,124860.0,0.6451925]
[1759842139004,0.009,124870.0,124860.0,0.72831456]
[1759842139659,0.003,124870.0,124860.0,0.72831456]
[1759842139882,0.16065255,124880.0,124860.0,0.72831456]
[1759842140100,0.16065255,124880.0,124870.0,0.01601665]
[1759842140532,0.20093255,124880.0,124870.0,0.22808]
[1759842140739,0.20093255,124880.0,124870.0,0.6442]
[1759842141362,0.20493255,124880.0,124870.0,0.6442]
[1759842142382,0.16016657,124870.0,124860.0,0.08352206]
[1759842142596,0.18591657,124870.0,124860.0,0.72772206]
[1759842142803,0.29837657,124870.0,124860.0,0.49628]
[1759842143947,0.30037657,124870.0,124860.0,0.49628]
[1759842144152,0.26271657,124870.0,124860.0,0.49628]
[1759842144369,0.24786657,124870.0,124860.0,0.49628]
[1759842144582,0.24786657,124870.0,124860.0,0.0004]
[1759842144788,0.24786657,124870.0,124860.0,0.64456]
[1759842145007,0.23281657,124870.0,124860.0,0.64456]
[1759842145219,0.01653,124870.0,124860.0,0.64456]
[1759842145442,0.16216657,124870.0,124860.0,0.64456]
[1759842145664,0.16216657,124870.0,124860.0,0.72768206]
[1759842145863,0.16216657,124870.0,124860.0,0.72827456]
[1759842146065,0.16216657,124870.0,124860.0,0.08411456]
[1759842146215,0.16216657,124870.0,124860.0,0.72827456]
[1759842146415,0.20244657,124870.0,124860.0,0.72827456]
[1759842146921,0.20244657,124870.0,124860.0,0.6451525]
[1759842148129,0.20244657,124870.0,124860.0,0.0009925]
[1759842148363,0.20244657,124870.0,124860.0,0.6451525]
[1759842150305,0.002,124870.0,124860.0,0.6451525]
[1759842150517,0.16216657,124870.0,124860.0,0.6451525]
[1759842151559,0.17655657,124870.0,124860.0,0.6451525]
[1759842153403,0.16216657,124870.0,124860.0,0.6451525]
[1759842153617,0.002,124870.0,124860.0,0.6451525]
[1759842153750,0.16216657,124870.0,124860.0,0.6451525]
[1759842154377,0.002,124870.0,124860.0,0.6451525]
[1759842154999,0.16216657,124870.0,124860.0,0.6451525]
[1759842155626,0.002,124870.0,124860.0,0.6451525]
[1759842159358,0.16216657,124870.0,124860.0,0.6451525]
[1759842159806,0.002,124870.0,124860.0,0.6451525]
[1759842160009,0.16216657,124870.0,124860.0,0.6451525]
[1759842160231,0.17655657,124870.0,124860.0,0.6451125]
[1759842160489,0.21447657,124870.0,124860.0,0.5619125]
[1759842160695,0.22923657,124870.0,124860.0,0.6451125]
[1759842160909,0.21503657,124870.0,124860.0,0.6451125]
[1759842161786,0.21503657,124870.0,124860.0,0.0009925]
[1759842162002,0.21503657,124870.0,124860.0,0.6451125]
[1759842162629,0.16216657,124870.0,124860.0,0.6451125]
[1759842163809,0.17655657,124870.0,124860.0,0.6451125]
[1759842164753,0.24995657,124870.0,124860.0,0.0009925]
[1759842164974,0.90284262,124870.0,124860.0,0.3122325]
[1759842165207,0.90284262,124870.0,124860.0,0.0009925]
[1759842165442,0.32569847,124870.0,124860.0,0.6451125]
[1759842165675,0.40569527,124870.0,124860.0,0.6451125]
[1759842166369,1.40596148,124870.0,124860.0,0.3122325]
[1759842166591,1.40596148,124870.0,124860.0,0.0009925]
[1759842166804,1.40596148,124870.0,124860.0,0.3122325]
[1759842167631,1.40596148,124870.0,124860.0,0.0009925]
[1759842167848,1.40596148,124870.0,124860.0,0.3122325]
[1759842168284,0.82881733,124870.0,124860.0,0.3122325]
[1759842168491,1.40596148,124870.0,124860.0,0.3122325]
[1759842168921,0.82881733,124870.0,124860.0,0.3122325]
[1759842169275,1.40596148,124870.0,124860.0,0.3122325]
[1759842169718,0.82881733,124870.0,124860.0,0.3122325]
[1759842170184,0.74882053,124870.0,124860.0,0.3122325]
[1759842171223,0.77285744,124870.0,124860.0,0.3122325]
[1759842173471,1.35000159,124870.0,124860.0,0.3122325]
[1759842174225,1.35789087,124870.0,124860.0,0.3122325]
[1759842175194,0.77285744,124870.0,124860.0,0.3122325]
[1759842175396,1.35000159,124870.0,124860.0,0.3122325]
[1759842175678,1.42999839,124870.0,124860.0,0.3122325]
[1759842175967,1.43820764,124870.0,124860.0,0.3122325]
[1759842177012,2.01535179,124870.0,124860.0,0.0009925]
[1759842177241,2.01535179,124870.0,124860.0,0.0894725]
[1759842178637,2.01935179,124870.0,124860.0,0.0894725]
[1759842178871,1.44020764,124870.0,124860.0,0.0894725]
[1759842179244,1.44720764,124870.0,124860.0,0.0894725]
[1759842179859,0.87006349,124870.0,124860.0,0.0894725]
[1759842180095,1.44720764,124870.0,124860.0,0.0894725]
[1759842180955,0.32858348,124870.0,124860.0,0.0894725]
[1759842181165,0.20072657,124870.0,124860.0,0.0894725]
[1759842181367,1.22100072,124870.0,124860.0,0.0009925]
[1759842181565,1.30412278,124870.0,124860.0,0.0895525]
[1759842181784,1.41427148,124870.0,124860.0,0.0895525]
[1759842181979,1.32327468,124870.0,124860.0,0.0009925]
[1759842182279,1.32327468,124870.0,124860.0,0.3122725]
[1759842182513,1.32727468,124870.0,124860.0,0.3122725]
[1759842183532,1.33027468,124870.0,124860.0,0.3122725]
[1759842183753,2.03543563,124870.0,124860.0,0.31128001]
[1759842183971,2.03543563,124870.0,124860.0,0.22804001]
[1759842184197,0.1903313,124860.0,124850.0,0.08324]
[1759842184398,1.56771846,124860.0,124850.0,0.08324]
[1759842184692,0.48545016,124860.0,124850.0,0.08324]
[1759842184941,1.66377924,124860.0,124850.0,0.08324]
[1759842185149,1.16603119,124860.0,124850.0,0.08324]
[1759842185348,1.16803119,124860.0,124850.0,0.31128]
[1759842185559,1.21805119,124860.0,124850.0,0.31128]
[1759842186936,0.53035696,124840.0,124830.0,0.0004]
[1759842187097,0.59941302,124840.0,124830.0,0.0004]
[1759842187341,0.66235696,124840.0,124830.0,0.13908]
[1759842187531,0.68639872,124840.0,124830.0,0.13908]
[1759842187935,1.42606103,124840.0,124830.0,0.31168]
[1759842188134,1.4825165,124840.0,124830.0,0.0014]
[1759842188313,1.4825165,124840.0,124830.0,0.31268]
[1759842188520,1.5625133,124840.0,124830.0,0.31468]
[1759842188744,1.5625133,124840.0,124830.0,0.31268]
[1759842189835,1.5625133,124840.0,124830.0,0.31168]
[1759842190039,1.5705133,124840.0,124830.0,0.31168]
[1759842190250,0.86595305,124840.0,124830.0,0.31168]
[1759842190395,1.5224933,124840.0,124830.0,0.31227272]
[1759842191022,1.5274933,124840.0,124830.0,0.31327272]
[1759842191242,0.87095305,124840.0,124830.0,0.31327272]
[1759842191668,1.5274933,124840.0,124830.0,0.31327272]
[1759842191853,0.87095305,124840.0,124830.0,0.31327272]
[1759842192052,1.5274933,124840.0,124830.0,0.31327272]
[1759842194460,0.87095305,124840.0,124830.0,0.31327272]
[1759842194669,1.5274933,124840.0,124830.0,0.31327272]
[1759842194890,0.87095305,124840.0,124830.0,0.31327272]
[1759842195113,1.5274933,124840.0,124830.0,0.31327272]
[1759842195544,0.87095305,124840.0,124830.0,0.31327272]
[1759842195782,2.2761789,124840.0,124830.0,1e-08]
[1759842195999,0.19038263,124820.0,124810.0,0.08364]
[1759842196245,1.13110612,124820.0,124810.0,0.08364]
[1759842196484,1.47110612,124820.0,124810.0,0.0004]
[1759842196698,1.49515484,124820.0,124810.0,0.08364]
[1759842197135,0.83861459,124820.0,124810.0,0.31172]
[1759842197355,1.49815484,124820.0,124810.0,0.31172]
[1759842197593,0.84161459,124820.0,124810.0,0.31172]
[1759842197806,1.49815484,124820.0,124810.0,0.31172]
[1759842198242,1.50115484,124820.0,124810.0,0.31172]
[1759842199311,1.73929681,124820.0,124810.0,0.31172]
[1759842200290,1.78731681,124820.0,124810.0,0.31172]
[1759842200838,0.84461459,124820.0,124810.0,0.31172]
[1759842201050,0.73134063,124820.0,124810.0,0.31172]
[1759842201219,0.66227945,124820.0,124810.0,0.31172]
[1759842201650,0.66227945,124820.0,124810.0,0.31211526]
[1759842201794,0.69243135,124820.0,124810.0,0.31211526]
[1759842202384,0.69243135,124820.0,124810.0,0.00079526]
[1759842202605,0.77242815,124820.0,124810.0,0.31215526]
[1759842202794,0.77242815,124820.0,124810.0,0.00079526]
[1759842203255,0.77242815,124820.0,124810.0,0.08611526]
[1759842203483,0.77242815,124820.0,124810.0,0.00079526]
[1759842204153,0.77234441,124820.0,124810.0,0.09679526]
[1759842204564,0.77234441,124820.0,124810.0,0.31215526]
[1759842204565,0.85546647,124820.0,124810.0,0.31215526]
[1759842206669,0.77546967,124820.0,124810.0,0.31215526]
[1759842209333,0.66219571,124820.0,124810.0,0.31215526]
[1759842209549,0.69234761,124820.0,124810.0,0.31215526]
[1759842213810,0.61865889,124820.0,124810.0,0.31215526]
[1759842214246,0.60427889,124820.0,124810.0,0.31215526]
[1759842214654,0.23412699,124820.0,124810.0,0.31215526]
[1759842215605,0.23412699,124820.0,124810.0,0.64519526]
[1759842215812,0.29828699,124820.0,124810.0,0.64519526]
[1759842216371,0.29828699,124820.0,124810.0,0.56195526]
[1759842216584,0.29828699,124820.0,124810.0,0.64519526]
[1759842217401,0.7166949,124820.0,124810.0,0.41711526]
[1759842217755,0.7166949,124820.0,124810.0,0.64519526]
[1759842217977,0.7166949,124820.0,124810.0,0.00079526]
[1759842218189,0.79981696,124820.0,124810.0,0.00079526]
[1759842218311,0.79981696,124820.0,124810.0,0.08635526]
[1759842218896,0.79981696,124820.0,124810.0,0.31211526]
[1759842221767,0.79972883,124820.0,124810.0,0.31211526]
[1759842223073,0.82377658,124820.0,124810.0,0.31211526]
[1759842223683,0.77552057,124820.0,124810.0,0.31211526]
[1759842228642,0.77552057,124820.0,124810.0,0.00079526]
[1759842229105,1.35346396,124820.0,124810.0,0.08611526]
[1759842229298,0.77552057,124820.0,124810.0,0.00079526]
[1759842229665,0.77552057,124820.0,124810.0,0.08611526]
[1759842229905,0.85551737,124820.0,124810.0,0.08611526]
[1759842230123,0.85551737,124820.0,124810.0,0.00079526]
[1759842230370,0.90353737,124820.0,124810.0,0.31211526]
[1759842232325,0.90353737,124820.0,124810.0,0.00079526]
[1759842232529,0.90353737,124820.0,124810.0,0.31211526]
[1759842232747,1.48148076,124820.0,124810.0,0.31211526]
[1759842233585,1.48148076,124820.0,124810.0,0.22887526]
[1759842233771,1.48148076,124820.0,124810.0,0.31215526]
[1759842234025,1.48148076,124820.0,124810.0,0.00079526]
[1759842234206,1.48148076,124820.0,124810.0,0.31215526]
[1759842234624,0.90353737,124820.0,124810.0,0.31215526]
[1759842235170,0.85551737,124820.0,124810.0,0.00079526]
[1759842235388,1.43346076,124820.0,124810.0,0.00079526]
[1759842235614,1.43346076,124820.0,124810.0,0.08751526]
[1759842236038,1.48148076,124820.0,124810.0,0.31215526]
[1759842236944,0.90353737,124820.0,124810.0,0.00079526]
[1759842237130,0.90353737,124820.0,124810.0,0.31215526]
[1759842237345,1.48148076,124820.0,124810.0,0.31215526]
[1759842237833,1.48148076,124820.0,124810.0,0.08407526]
[1759842238053,1.48148076,124820.0,124800.0,0.0004]
[1759842238054,0.19039547,124810.0,124800.0,0.0004]
[1759842238278,0.93145772,124810.0,124800.0,0.31176]
[1759842238473,0.35351433,124810.0,124800.0,0.31176]
[1759842238687,0.93145772,124810.0,124800.0,0.31176]
[1759842239305,0.93445772,124810.0,124800.0,0.31176]
[1759842239636,0.95850867,124810.0,124800.0,0.31176]
[1759842241165,0.95850867,124810.0,124800.0,0.0004]
[1759842241364,0.95850867,124810.0,124800.0,0.31176]
[1759842243359,0.30056848,124810.0,124800.0,0.31176]
[1759842243761,0.30056848,124810.0,124800.0,0.31195766]
[1759842245290,0.34858848,124810.0,124800.0,0.31195766]
[1759842245548,0.30056848,124810.0,124800.0,0.31195766]
[1759842248280,0.30056848,124810.0,124800.0,0.00059766]
[1759842248483,0.95850867,124810.0,124800.0,0.31191766]
[1759842248694,0.38056528,124810.0,124800.0,0.31191766]
[1759842249115,0.95850867,124810.0,124800.0,0.31191766]
[1759842251172,1.00652867,124810.0,124800.0,0.00059766]
[1759842251374,1.00652867,124810.0,124800.0,0.31191766]
[1759842251586,1.34652867,124810.0,124800.0,1e-08]
[1759842251798,0.19040831,124800.0,124790.0,0.0004]
[1759842252006,0.93147056,124800.0,124790.0,0.0864]
[1759842252222,0.93147056,124800.0,124790.0,0.0004]
[1759842252427,0.97949056,124800.0,124790.0,0.31172]
[1759842252637,1.00354371,124800.0,124790.0,0.22844]
[1759842252841,1.02444121,124800.0,124790.0,0.31172]
[1759842253047,0.16028209,124780.0,124770.0,0.33352]
[1759842253280,0.24340415,124780.0,124770.0,0.4168]
[1759842254256,0.24640415,124780.0,124770.0,0.64484]
[1759842254840,0.32640095,124780.0,124770.0,0.64484]
[1759842255243,0.24640415,124780.0,124770.0,0.64484]
[1759842255392,0.24840415,124780.0,124770.0,0.64484]
[1759842256250,0.24640415,124780.0,124770.0,0.64484]
[1759842256583,0.24340415,124780.0,124770.0,0.64484]
[1759842256784,0.24440415,124780.0,124770.0,0.64484]
[1759842257074,0.26758091,124780.0,124770.0,0.64484]
[1759842257459,0.16128209,124780.0,124770.0,0.64484]
[1759842257659,0.53143399,124780.0,124770.0,0.64484]
[1759842257890,0.19143399,124780.0,124770.0,0.64543314]
[1759842263552,0.30053399,124780.0,124770.0,0.64543314]
[1759842266720,0.0738,124780.0,124770.0,0.64543314]
[1759842266929,0.16128209,124780.0,124770.0,0.64543314]
[1759842267144,0.001,124780.0,124770.0,0.7285552]
[1759842268085,0.001,124780.0,124770.0,0.7305552]
[1759842268723,0.17520209,124780.0,124770.0,0.0861152]
[1759842269022,0.21814209,124780.0,124770.0,0.7305552]
[1759842269232,0.26938209,124780.0,124770.0,0.00299314]
[1759842269461,0.26938209,124780.0,124770.0,0.64743314]
[1759842270357,0.26938209,124780.0,124770.0,0.00299314]
[1759842270802,0.26938209,124780.0,124770.0,0.51831314]
[1759842271454,0.26938209,124780.0,124770.0,0.64743314]
[1759842272531,0.29953399,124780.0,124770.0,0.00299314]
[1759842272740,0.29953399,124780.0,124770.0,0.64743314]